Cogmind - Beta 13 *** ADVENTURER MODE // 2024.04.02 @ 00:18:03 Player: Camdameron7D7 Result: Self-destructed Performance ------------- Evolutions (1) 500 Regions Visited (2) 400 Robots Destroyed (14) 70 Value Destroyed (369) 369 Prototype IDs (0) 0 Alien Tech Used (0) 0 Bonus (0) 0 TOTAL SCORE: 1339 Bonus ------- None Cogmind --------- Core Integrity 315/400 Matter 275/300 Energy 125/125 System Corruption 0% Temperature Hot (200) Movement Core (200) Ox3 Location -9/Materials Parts ------- > --- POWER (1) -------- Light Ion Engine > --- PROPULSION (4) --- (None) > --- UTILITY (2) ------ Heat Sink Small Storage Unit > --- WEAPON (2) ------- Small Laser > --- INVENTORY (8) ---- Ion Engine Ion Engine Aluminum Leg Aluminum Leg Small Storage Unit Terrain Scanner Peak State ------------ > --- POWER ------------ Light Ion Engine > --- PROPULSION ------- Flight Unit Flight Unit Flight Unit Flight Unit > --- UTILITY ---------- Small Storage Unit Tractor Beam > --- WEAPON ----------- Small Laser Light Assault Rifle > --- INVENTORY -------- Ion Engine Light Ion Engine Aluminum Leg Aluminum Leg Terrain Scanner [Rating: 9] Favorites ----------- Power Light Ion Engine Engine Light Ion Engine Propulsion Flight Unit Treads Light Treads Wheel Compact Wheel Flight Unit Flight Unit Utility Small Storage Unit Device Heat Sink Storage Small Storage Unit Weapon Small Laser Energy Gun Small Laser Ballistic Gun Light Assault Rifle Build | -11 -10 -9 ------- Run | Yrd Mat Mat Slots Evolved 2 | . . 2 Power . | . . . Propulsion 2 | . . 2 Utility . | . . . Weapon . | . . . Parts Attached 22 | 7 4 11 Power 3 | 1 . 2 Engine 3 | 1 . 2 Core . | . . . Reactor . | . . . Propulsion 9 | 3 4 2 Treads 1 | 1 . . Leg . | . . . Wheel 2 | 2 . . Hover . | . . . Flight 6 | . 4 2 Utility 6 | 1 . 5 Device 3 | . . 3 Storage 3 | 1 . 2 Processor . | . . . Hackware . | . . . Protection . | . . . Artifact . | . . . Weapon 4 | 2 . 2 Energy Gun 2 | 1 . 1 Energy Cannon . | . . . Ballistic Gun 2 | 1 . 1 Ballistic Cannon . | . . . Launcher . | . . . Special Weapon . | . . . Impact Weapon . | . . . Slashing Weapon . | . . . Piercing Weapon . | . . . Special Melee Weapon . | . . . Unidentified Prototypes . | . . . Parts Lost 6 | . . 6 Power 1 | . . 1 Propulsion 4 | . . 4 Utility . | . . . Weapon 1 | . . 1 Highest Loss Streak 5 | . . 5 To Critical Strikes . | . . . Average Slot Usage (%) 89 | . 85 93 Engine 12 | . 14 11 Wheel 11 | . 22 . Flight 23 | . 5 42 Device 3 | . . 8 Storage 12 | . 14 11 Energy Gun 12 | . 14 10 Ballistic Gun 12 | . 14 10 Naked Turns . | . . . Heaviest Build 13 | 10 10 13 Greatest Support 26 | 26 26 16 Greatest Overweight (x) 3 | . 3 . Average Overweight (x) . | . . . Largest Inventory Capacity 10 | 8 8 10 Average Capacity 7 | 6 8 8 Most Carried 8 | 5 8 8 Average Carried 6 | 3 7 5 Final Capacity 8 | 8 8 8 Final Carried 8 | 5 8 6 Class Distribution -------------------- 45% | Mutant 45% | Scavenger-Sprinter 9% | Scavenger-Mutant Dominant Class ---------------- Mutant | -10/Materials Scavenger-Sprinter | -9/Materials Resources | -11 -10 -9 ----------- Run | Yrd Mat Mat Matter Collected 416 | 185 125 106 Remotely 66 | . . 66 Salvage Created 509 | . 288 221 Parts 25 | . 17 8 Haulers Intercepted . | . . . Recyclers Shooed 1 | . . 1 Parts Field Recycled . | . . . Retrieved Matter . | . . . Parts Self-Destructed . | . . . Prevented . | . . . Kills | -11 -10 -9 ------- Run | Yrd Mat Mat Combat Hostiles Destroyed 12 | . 6 6 Guns 11 | . 6 5 AOE 1 | . . 1 Classes Destroyed 4 | . 4 . Worker 1 | . 1 . Recycler 1 | . 1 . Swarmer 3 | . 3 . Grunt 9 | . 3 6 Best Kill Streak 6 | . 6 3 Combat Bots Only 3 | . 3 3 Max Kills in Single Turn 1 | . 1 1 Gunslinging . | . . . Exploded 1 | . . 1 Melee . | . . . Uniques/NPCs Destroyed . | . . . Combat | -11 -10 -9 -------- Run | Yrd Mat Mat Hostile Shots Fired 87 | . 27 60 Missed 41 | . 12 29 Damage Taken 471 | . 139 332 Core 111 | . 26 85 Absorbed by Shields . | . . . Ignored by Resistances 148 | . 43 105 Core Remaining (%) 94 | 100 89 . Volleys Fired 51 | . 20 31 Largest 2 | . 2 2 Hottest 60 | . 60 60 Shots Fired 97 | . 40 57 Gun 97 | . 40 57 Cannon . | . . . Launcher . | . . . Special . | . . . Kinetic 46 | . 20 26 Thermal 51 | . 20 31 Explosive . | . . . Electromagnetic . | . . . Robot Hit Streak 25 | . 6 25 Robot Miss Streak 3 | . 3 2 Penetration Max . | . . . Secondary Targets 2 | . 2 . Max Gunslinging Chain 1 | . 1 . Shots Hit Robots 70 | . 24 46 Core Hits 26 | . 13 13 Critical Kills . | . . . Critical Parts Destroyed . | . . . Critical Strikes . | . . . Melee Attacks . | . . . Impact . | . . . Slashing . | . . . Piercing . | . . . Sneak Attacks . | . . . Combat Hostiles . | . . . Follow-up Attacks . | . . . Damage Inflicted 701 | . 238 463 Guns 701 | . 238 463 Cannons . | . . . Explosions . | . . . Melee . | . . . Ramming . | . . . Kinetic 273 | . 98 175 Thermal 428 | . 140 288 Explosive . | . . . Electromagnetic . | . . . Impact . | . . . Slashing . | . . . Piercing . | . . . Highest Corruption . | . . . Average Corruption . | . . . Corruption Purged . | . . . Corruption Blocked . | . . . Overload Shots . | . . . Overflow Damage . | . . . Projectiles . | . . . Explosions . | . . . Melee . | . . . Knockbacks . | . . . Impact . | . . . Kinetic . | . . . Secondary . | . . . Self-Inflicted Damage . | . . . Shots . | . . . Rammed . | . . . Targets Rammed . | . . . Kicked . | . . . Crushed . | . . . Highest Temperature 187 | . 123 187 Average Temperature 74 | . 50 88 Received Heat Transfer 315 | . 90 225 Siege Activations . | . . . Robots Corrupted . | . . . Combat Hostiles . | . . . Parts Fried . | . . . Impact Corruptions . | . . . Robots Melted . | . . . Combat Hostiles . | . . . Parts Melted . | . . . Heat Transferred 975 | . 325 650 Parts Sabotaged . | . . . Parts Stolen . | . . . Parts Stripped . | . . . Power Chain Reactions . | . . . Alert | -11 -10 -9 ------- Run | Yrd Mat Mat Peak Influence 243 | . 190 243 Initial 68 | . . 68 Average 104 | . 80 157 Maximum Alert Level 1 | . . 1 Low Security (%) 95 | 100 100 89 Level 1 4 | . . 10 Level 2 . | . . . Level 3 . | . . . Level 4 . | . . . Level 5 . | . . . High Security . | . . . Max Security . | . . . Squads Dispatched 2 | . 1 1 Investigation 1 | . 1 . Extermination . | . . . Reinforcement 1 | . . 1 Assault . | . . . Garrison . | . . . Intercept . | . . . Searches Triggered . | . . . Construction Impeded . | . . . Haulers Reinforced . | . . . Active Scanning Responses . | . . . Cargo Convoy Interrupts . | . . . Stealth | -11 -10 -9 --------- Run | Yrd Mat Mat Distress Signals 1 | . 1 . Communications Jammed . | . . . Distress Signals . | . . . Times Spotted 20 | . 9 11 Peak Tracking Total 6 | . 6 4 Tactical Retreats . | . . . Traps | -11 -10 -9 ------- Run | Yrd Mat Mat Traps Triggered 2 | . 2 . Indirectly . | . . . Trap Hack Attempts . | . . . Triggered . | . . . Disarmed . | . . . Reprogrammed . | . . . Reused . | . . . Traps Extracted . | . . . Installed . | . . . Triggered . | . . . Machines | -11 -10 -9 ---------- Run | Yrd Mat Mat Machines Disabled . | . . . Max in Single Turn . | . . . Machines Repaired . | . . . Machines Dismantled . | . . . Machines Sabotaged . | . . . Overloaded Fab Kills . | . . . Hacking | -11 -10 -9 --------- Run | Yrd Mat Mat Machines Accessed 2 | . 1 1 Terminals 2 | . 1 1 Fabricators . | . . . Repair Stations . | . . . Recycling Units . | . . . Scanalyzers . | . . . Garrison Access . | . . . Total Hacks 6 | . 2 4 Successful 4 | . 2 2 Failed 2 | . . 2 Catastrophic . | . . . Database Lockouts . | . . . Manual 2 | . . 2 Terminals 6 | . 2 4 Fabricators . | . . . Repair Stations . | . . . Recycling Units . | . . . Scanalyzers . | . . . Garrison Access . | . . . Terminal Hacks 4 | . 2 2 Record 2 | . 2 . Part Schematic 1 | . . 1 Hauler Manifests 1 | . . 1 Fabricator Hacks . | . . . Repair Station Hacks . | . . . Recycling Unit Hacks . | . . . Scanalyzer . | . . . Garrison Access Hacks . | . . . Unauthorized Hacks . | . . . Terminals . | . . . Fabricators . | . . . Repair Stations . | . . . Recycling Units . | . . . Scanalyzers . | . . . Garrison Access . | . . . Data Cores Recovered . | . . . Used . | . . . Hacking Detections 2 | . 1 1 Full Trace Events . | . . . Feedback Events . | . . . Feedback Blocked . | . . . Robot Schematics Acquired . | . . . Robots Built . | . . . Authchips . | . . . Time . | . . . Total Robot Build Rating . | . . . Part Schematics Acquired 1 | . . 1 Parts Built . | . . . Authchips . | . . . Time . | . . . Total Part Build Rating . | . . . Parts Repaired . | . . . Time . | . . . Parts Recycled . | . . . Recycled Matter . | . . . Retrieved Matter . | . . . Retrieved Components . | . . . Parts Scanalyzed . | . . . Part Schematics Acquired . | . . . Parts Damaged . | . . . Bothacking | -11 -10 -9 ------------ Run | Yrd Mat Mat Used RIF Installer . | . . . Robots Hacked . | . . . Non-combat . | . . . Combat . | . . . Robot Hacks Applied . | . . . Relay Couplers Released . | . . . Fabnet Peak Effective % . | . . . Robots Rewired . | . . . Allies Hacked . | . . . Hacks Repelled . | . . . Allies | -11 -10 -9 -------- Run | Yrd Mat Mat Total Allies . | . . . Largest Group . | . . . Highest-Rated Group . | . . . Highest-Rated Ally . | . . . Total Orders . | . . . Ally Attacks . | . . . Total Damage . | . . . Kills . | . . . Allies Corrupted . | . . . Allies Melted . | . . . Intel | -11 -10 -9 ------- Run | Yrd Mat Mat Robot Analysis Total . | . . . Derelict Logs Recovered . | . . . Drone Launches . | . . . Drone Recoveries . | . . . Exploration | -11 -10 -9 ------------- Run | Yrd Mat Mat Turns Passed 447 | 57 194 196 Spaces Moved 470 | 47 121 302 Core 12 | 11 1 . Treads . | . . . Legs . | . . . Wheels 135 | 36 99 . Hover . | . . . Flight 323 | . 21 302 Fastest Speed 31 | 50 90 31 Average Speed 52 | 80 96 31 Slowest Speed 200 | 90 200 31 Overloaded Moves . | . . . Propulsion Burnouts . | . . . Robots Hopped 3 | . . 3 Cave-ins Triggered . | . . . Exploration Rate (%) 19 | 4 27 28 Regions Visited 2 Branch Regions . Pre-discovered Areas . | . . . Known Exits Taken . | . . . Unknown Exits Taken 2 | 1 1 . Scrap Searched . | . . . Spaces Dug . | . . . Terrain Destroyed . | . . . Melee . | . . . Projectile . | . . . AOE . | . . . Terrain Rammed . | . . . Walls Destroyed . | . . . Machines Disabled . | . . . Actions | -11 -10 -9 --------- Run | Yrd Mat Mat Total 578 | 65 162 351 Wait 5 | . 5 . Move 462 | 46 120 296 Hop 3 | . . 3 Pick Up 23 | 11 8 4 Fast Attach 4 | 1 2 1 Attach 13 | 5 . 8 Detach 3 | . . 3 Swap 5 | 1 2 2 Drop 9 | 1 5 3 Fire 51 | . 20 31 Melee . | . . . Ram . | . . . Kick . | . . . Crush . | . . . Escape Stasis . | . . . Rewire . | . . . Trap . | . . . Miscellaneous . | . . . Route ------- -11/Scrapyard -10/Materials -9/Materials History --------- Turn | Location | Event 8 | -11/Scrapyard | Discovered new exit (range 16) 58 | -11/Scrapyard | Entered Materials 225 | -10/Materials | Discovered new exit (range 16) 252 | -10/Materials | Entered another Materials area 252 | -9/Materials | Evolved 2 slots: Propulsion x2 448 | -9/Materials | Self-destructed Last Messages --------------- U-05 Engineer lays Concrete. Connecting with Terminal... >>Schematic(Flight Unit) Downloading schematic... Flight Unit Rating: 1 Schematic downloaded. R-06 Scavenger collects Corrupted Heat Sink. U-05 Engineer lays Concrete. Connecting with Terminal... R-06 Scavenger collects Tractor Beam. U-05 Engineer lays Concrete. Acquired Sml. Storage Unit. Flight Unit destroyed. G-47 Trooper destroyed. G-34 Mercenary destroyed. Lgt. Assault Rifle destroyed. Flight Unit destroyed. Critical hit (Burn: +37). Flight Unit destroyed. Map ----- +----------------------------------------------------+ | ????????# #?????????##?? | | ????????# """ +????????? ?? | | ????????# """ #?????????# ?? | | ????????# """ !!!#?????????# #? | | ????????# ! #?????????# #? | | ????????# !! #?????????# #? | | ?############/############### ## | | ?# ! # | | ?# # ########??# | | ?# """ """ # #?????????# | | ?# """ """ # ##+########??# | | ?# """ """ # # #??# ## | | ?# # # #### #? | | ???###+##### # + #? | | ????# # """ """ ######? | | ????# + """ """ #?????? | | ????# # """ """ #?????? | | ????# ##### ## #?????? | | ????# #???# ## #?????? | | ????# #???# ############?????? | | ????# #####+##???????????????? | | ????# # #???????????????? | | ????# # #???????????????? | | ????# # """ #???????????????? | | ????# Y """ #???????????????? | | ????# @# """ #???????????????? | | ????# # #???????????????? | | ????# ########???????????????? | | ????# tg#??????????????????????? | | ????# #??????????????????????? | | ????#g%g#??????????????????????? | | ????# % ??????????????????????? | | ????# ??????????????????????? | | ????# ??????????????????????? | | ????# ??????????????????????? | | ????# ??????????????????????? | | ????# ??????????????????????? | | ????# ??????????????????????? | | ????# ??????????????????????? | | ????# ??????????????????????? | | ????? #??????????????????????? | | ???????????????????????????????? | | ???????????????????????????????? | | ???????????????????????????????? | | ???????????????????????????????? | | ???????????????????????????????? | | ???????????????????????????????? | | ???????????????????????????????? | | ???????????????????????????????? | | ???????????????????????????????? | +----------------------------------------------------+ Best States ------------- Heat Dissipation 38 Energy Generation 10 Energy Capacity 250 Matter Stores 300 Matter Capacity 300 Sight Range 16 Terrain Scan Density 10 Resistance: KI 20 Resistance: TH 20 Resistance: EX 20 Resistance: EM 20 Resistance: I 20 Resistance: S 20 Resistance: P 20 Evasion (%) 63 Offensive Hacking 10 Item Schematics ----------------- Flight Unit | -9/Materials | Hacked Robot Schematics ------------------ None Fabricated ------------ Nothing Alien Tech Used ----------------- None Achievements -------------- None Challenges ------------ None Game ------ Seed HeatVariableMantle Manual? 0 Play Time 00:12:06 Cumulative 13.6 hours Start 2024.04.02 @ 00:04:59 End 2024.04.02 @ 00:18:03 Sessions 1 Manual Loads 0 Difficulty Adventurer Special Mode None Game No. 9 Rogue 0 Adventurer 9 Explorer 0 Win Type - Total 0 Types 0/0/0/0/0/0/0/0/0 Lore% 13 Gallery% 21 Achievement% 16 Wizard Run 0 Options --------- Layout 1 ASCII 0 Keyboard 0 Movement Mouse Keybinds 0 Fullscreen 1 Font 48/Smallcaps Map View 50x35 Zoom Use 0% Tactical HUD 0 Map Filters NONE Filters NONE Steam 1 RUN: d8fd5c91-625a-4cf5-9f0d-e6bcb25ccb08